bitfinex/quotes_ETHUSD_20250721
["timestamp","ask_amount","ask_price","bid_price","bid_amount"]
[1753122354626,16.06470192,3795.0,3794.4,0.001]
[1753122355213,9.07498542,3795.0,3794.4,0.001]
[1753122355414,12.07498542,3795.0,3794.4,0.001]
[1753122355622,13.67972001,3795.0,3794.4,0.001]
[1753122356143,24.32095201,3795.0,3794.9,1e-08]
[1753122356556,24.51381603,3795.0,3794.9,1e-08]
[1753122356703,3.1856017,3794.2,3794.1,0.02]
[1753122356898,11.1013017,3794.2,3794.1,0.02]
[1753122357143,3.95964907,3793.7,3793.6,0.001]
[1753122357309,25.60164907,3793.7,3793.6,1e-08]
[1753122357510,26.03174907,3793.7,3793.6,1e-08]
[1753122357703,26.88397253,3793.7,3793.6,1e-08]
[1753122358043,22.74197253,3793.7,3793.6,1e-08]
[1753122358209,22.74197253,3793.7,3792.0,0.4417]
[1753122358210,3.41041567,3792.6,3790.4,0.7502]
[1753122358415,0.55,3792.3,3791.3,0.7502]
[1753122358725,6.1871308,3792.0,3791.1,0.021]
[1753122358931,11.1118308,3792.0,3791.1,0.021]
[1753122359134,3.96138727,3791.2,3791.1,0.021]
[1753122359319,6.18775685,3791.1,3791.0,1e-08]
[1753122359521,21.11785685,3791.1,3791.0,1e-08]
[1753122359739,24.18019446,3791.1,3791.0,1e-08]
[1753122359946,6.96208319,3790.2,3790.1,1e-08]
[1753122360163,11.16208319,3790.2,3790.1,1e-08]
[1753122360351,11.59718319,3790.2,3790.1,1e-08]
[1753122360512,6.18907948,3789.2,3789.1,0.02]
[1753122360844,11.36804655,3789.2,3789.1,0.02]
[1753122361033,11.79814655,3789.2,3789.1,0.02]
[1753122361231,12.57184655,3789.2,3789.1,0.02]
[1753122361443,5.09744791,3789.2,3789.1,0.02]
[1753122361755,25.32517948,3789.2,3789.1,0.02]
[1753122361941,26.29366028,3789.2,3789.1,1e-08]
[1753122362141,26.29366028,3789.2,3788.1,0.02]
[1753122362142,3.18977614,3788.2,3788.1,0.02]
[1753122362342,11.18247614,3788.2,3788.1,0.02]
[1753122362545,6.37977137,3788.2,3788.1,0.02]
[1753122362720,25.68447614,3788.2,3788.1,0.02]
[1753122362920,17.5,3788.2,3788.1,0.02]
[1753122363150,0.55,3789.4,3788.1,0.4617]
[1753122363336,3.0,3788.7,3788.1,0.04639845]
[1753122363657,0.55,3788.4,3787.1,0.00662463]
[1753122363837,6.18979392,3788.2,3787.1,0.00662463]
[1753122364030,0.55,3787.9,3787.1,0.00662463]
[1753122364359,3.55,3787.7,3787.1,0.00662463]
[1753122364528,4.244,3787.6,3787.1,0.00662463]
[1753122364728,4.244,3787.6,3787.1,0.03303005]
[1753122365060,4.244,3787.6,3787.4,2.64031399]
[1753122365355,2.63988016,3788.1,3787.1,0.00662463]
[1753122365557,3.0,3788.1,3787.1,0.00662463]
[1753122365742,2.64018491,3787.7,3787.1,0.44832463]
[1753122365940,4.245,3787.6,3787.1,0.44832463]
[1753122366252,0.132,3787.2,3787.1,0.00662463]
[1753122366454,0.132,3787.2,3787.1,0.44832463]
[1753122366842,0.132,3787.2,3787.1,3.08886752]
[1753122367044,4.375,3787.9,3787.2,2.64040359]
[1753122367232,0.132,3787.9,3787.8,2.64005491]
[1753122367433,4.245,3788.1,3787.8,0.4417]
[1753122367636,4.3762,3788.1,3787.9,0.4417]
[1753122367859,4.3762,3788.1,3785.3,0.8297]
[1753122367860,0.7658,3787.5,3785.3,0.8297]
[1753122368055,10.641232,3786.3,3785.3,0.8297]
[1753122368259,2.64165905,3785.5,3785.3,0.8297]
[1753122368445,0.02640281,3785.4,3785.3,0.8297]
[1753122368647,0.02640281,3785.4,3785.3,1.2714]
[1753122368853,0.02640281,3786.2,3785.3,1.2714]
[1753122369037,0.8002,3785.9,3784.1,0.02642636]
[1753122369225,2.6415194,3785.7,3784.1,0.4417]
[1753122369558,3.0,3785.5,3784.1,0.4417]
[1753122369755,0.02640281,3785.4,3784.1,0.46812636]
[1753122369958,2.64179853,3785.3,3784.2,2.64256646]
[1753122370170,0.781,3786.5,3784.9,2.64205935]
[1753122370363,0.02640281,3786.4,3785.0,0.46812007]
[1753122370563,14.52640281,3786.4,3785.1,3.40897336]
[1753122370722,14.5,3786.4,3786.0,2.64130593]
[1753122370924,0.02640281,3786.3,3785.5,2.64165774]
[1753122371125,0.57640281,3786.3,3785.6,0.7085075]
[1753122371325,0.57640281,3786.3,3785.7,0.4417]
[1753122371531,0.02640281,3786.3,3785.8,2.64144962]
[1753122371733,0.02640281,3786.3,3785.9,0.4417]
[1753122372836,0.02640281,3786.3,3786.0,0.4417]
[1753122373038,0.02640281,3786.3,3785.3,0.4417]
[1753122373362,0.55,3786.0,3785.3,0.4417]
[1753122373533,0.02640281,3785.9,3785.3,3.02685973]
[1753122373740,0.02640281,3785.9,3785.4,2.64172806]
[1753122373940,0.02640281,3785.9,3785.8,2.64144962]
[1753122374161,0.57640281,3786.5,3785.5,0.4417]
[1753122374366,3.57640281,3786.5,3785.7,2.64146565]
[1753122374571,6.21736624,3786.5,3785.7,2.64146565]
[1753122374757,6.2173746,3786.5,3785.5,0.4417]
[1753122374950,0.55,3786.3,3785.5,0.75268389]
[1753122375178,3.19124578,3786.1,3785.2,2.6418547]
[1753122375480,1.3214,3785.9,3785.1,0.001]
[1753122375647,2.64186054,3785.3,3785.1,0.001]
[1753122375837,0.02640281,3785.2,3785.1,0.001]
[1753122376181,0.57640281,3785.2,3785.1,0.001]
[1753122376680,0.02640281,3785.2,3785.1,0.001]
[1753122376879,3.0,3786.7,3785.1,0.001]
[1753122376880,4.281,3786.1,3785.2,0.795]
[1753122377044,0.02640281,3786.0,3785.5,2.64164532]
[1753122377379,0.02640281,3786.4,3786.0,2.64125559]
[1753122377540,4.30840281,3786.4,3785.3,0.02641798]
[1753122377879,0.19836732,3788.3,3786.3,0.764]
[1753122378041,2.64108272,3789.2,3787.5,3.40426402]
[1753122378378,2.64108272,3789.2,3788.0,2.63984755]
[1753122378379,0.1312,3788.4,3788.0,2.63984755]
[1753122378540,0.1312,3788.1,3787.6,0.8091264]
[1753122378876,4.294,3788.6,3786.9,0.4687]
[1753122379038,0.132,3787.5,3786.9,0.4687]
[1753122379235,0.55,3787.4,3786.9,0.4687]
[1753122379435,0.132,3787.1,3786.9,0.4687]
[1753122380273,0.132,3787.1,3786.5,6.1096492]
[1753122380475,0.4568,3787.8,3786.2,0.8081]
[1753122380780,0.132,3786.4,3786.0,0.4687]
[1753122380970,0.132,3786.4,3786.0,3.0]
[1753122381165,0.132,3786.4,3786.3,2.64110081]
[1753122381368,0.132,3786.4,3786.3,5.64110081]
[1753122381578,2.64004443,3787.9,3786.5,0.7991]
[1753122381745,0.132,3787.5,3786.8,0.132]
[1753122382079,0.132,3787.5,3787.0,2.64061262]
[1753122382478,0.132,3787.5,3787.1,0.4687]
[1753122382653,0.132,3787.5,3787.3,2.64038623]
[1753122382852,0.132,3787.5,3787.2,0.4687]
[1753122383054,0.132,3787.5,3787.3,0.4687]
[1753122383376,0.55,3787.2,3786.6,0.4687]
[1753122384550,3.19048149,3787.2,3786.6,0.4687]
[1753122384946,3.19048149,3787.2,3786.0,4.295]
[1753122384947,6.19082178,3786.8,3786.1,0.0264124]
[1753122385174,2.64111778,3786.3,3785.5,2.64164256]
[1753122385376,3.55,3786.8,3785.5,2.64164256]
[1753122385377,2.64117309,3786.2,3785.5,3.11034256]
[1753122385589,2.64088344,3786.7,3785.5,0.4687]
[1753122385887,3.0,3786.1,3785.5,0.4687]
[1753122386050,3.0,3786.2,3785.5,0.4687]
[1753122386244,3.0,3786.2,3785.6,2.64157712]
[1753122386478,2.64104734,3786.4,3785.6,2.64157712]
[1753122386680,0.55,3786.3,3785.5,3.11035343]
[1753122386880,0.55,3786.6,3785.6,0.39358534]
[1753122387082,0.55,3786.4,3785.6,2.64158918]
[1753122387257,0.20214026,3786.9,3785.7,0.49511519]
[1753122387463,0.13766851,3787.3,3786.9,2.64062157]
[1753122387661,0.13766851,3787.3,3787.0,0.4687]
[1753122387868,0.13766851,3787.3,3787.2,2.64047317]
[1753122388095,0.13766851,3787.3,3787.2,3.44649522]
[1753122388272,0.13766851,3787.3,3787.2,0.80602205]
[1753122388469,0.13766851,3787.3,3787.2,3.44649522]
[1753122389080,3.0,3788.2,3787.5,2.64026007]
[1753122389592,0.55,3788.3,3787.6,0.4687]
[1753122389799,3.0,3788.2,3787.6,0.4687]
[1753122389995,0.55,3788.3,3787.7,2.64005513]
[1753122390170,0.55,3788.4,3787.6,3.10887263]
[1753122390385,3.0,3788.3,3787.7,2.64011298]
[1753122390594,0.8029,3788.9,3787.7,2.64006975]
[1753122390595,2.63963269,3788.5,3787.7,2.64006975]
[1753122390911,3.0,3788.4,3787.7,2.64006975]
[1753122391096,3.0,3788.4,3787.8,2.64005036]
[1753122391309,3.0,3788.4,3787.6,0.49510194]
[1753122391310,3.0,3788.7,3787.9,0.4687]
[1753122391675,0.55,3788.5,3787.9,0.4687]
[1753122391908,3.55,3788.5,3787.9,0.4687]
[1753122392276,0.55,3788.6,3787.9,0.4687]
[1753122392476,3.18953163,3788.6,3787.9,3.10867118]
[1753122392700,2.63937808,3788.8,3787.9,0.4687]
[1753122392701,3.0,3788.4,3787.9,0.4687]
[1753122392911,2.63963052,3788.5,3787.6,0.02640194]
[1753122392912,0.55,3788.5,3787.6,0.02640194]
[1753122393078,3.0,3788.3,3788.0,0.4687]
[1753122393408,0.1312,3788.2,3788.0,0.4687]
[1753122393572,0.1312,3788.2,3787.7,0.6952729]
[1753122393776,0.1312,3788.2,3788.1,0.4687]
[1753122395013,0.1312,3788.5,3788.1,0.4687]
[1753122395214,0.1312,3788.5,3788.2,0.4687]
[1753122395429,0.1312,3788.5,3788.3,0.4687]
[1753122395811,0.1312,3788.5,3788.4,0.4687]
[1753122396133,0.1312,3788.5,3788.4,3.10833678]
[1753122396437,0.002,3789.2,3788.4,1.12005028]
[1753122396620,1e-08,3789.2,3789.1,2.63914913]
[1753122396819,1e-08,3789.2,3789.1,7.07974062]
[1753122397022,1e-08,3789.2,3789.1,7.52204913]
[1753122397205,0.1312,3790.0,3789.1,7.52204913]
[1753122397206,0.1312,3790.0,3789.8,2.63866167]
[1753122397408,0.1312,3790.5,3789.8,7.07924828]
[1753122397711,0.1312,3790.5,3789.8,8.28696167]
[1753122397919,2.63844719,3790.2,3789.8,4.282]
[1753122398104,0.1312,3790.0,3789.8,7.38936167]
[1753122398305,0.1312,3790.4,3789.8,4.8829]
[1753122398720,0.1312,3790.4,3789.8,7.52156167]
[1753122398995,2.76945845,3790.4,3789.8,5.90057478]
[1753122399200,0.1312,3790.4,3789.8,7.52056167]
[1753122400013,2.76944846,3790.4,3789.8,4.8819]
[1753122400411,2.63850655,3790.1,3789.8,4.4122]
[1753122400711,2.76975255,3790.0,3789.4,0.5999]
[1753122400915,2.76992587,3789.8,3789.2,0.7654]
[1753122401116,2.76992587,3789.8,3789.5,4.277]
[1753122401617,0.1312,3789.8,3789.5,4.277]
[1753122401937,0.1312,3789.8,3789.5,4.275]
[1753122401938,2.63883594,3789.6,3789.5,4.275]
[1753122402318,2.63874591,3789.7,3789.5,4.275]
[1753122402501,0.1312,3789.8,3789.2,0.7654]
[1753122402705,0.1312,3789.8,3789.3,4.272]
[1753122402928,2.63878005,3789.7,3789.3,4.272]
[1753122403137,2.63883198,3789.6,3789.2,0.7654]
[1753122403437,0.1312,3789.2,3788.9,4.27]
[1753122403617,2.7703324,3789.2,3788.9,4.27]
[1753122403934,0.1312,3789.2,3788.9,0.4687]
[1753122404135,2.77028039,3789.2,3788.9,0.4687]
[1753122404338,0.1312,3789.2,3789.0,0.4687]
[1753122404505,0.1312,3789.2,3789.1,0.4687]
[1753122404708,2.77027948,3789.2,3789.1,0.4687]
[1753122405038,2.77031331,3789.2,3789.1,4.27]
[1753122405428,2.77031331,3789.2,3787.8,1.2301]
[1753122405429,1.75863058,3789.2,3787.8,1.2301]
[1753122405751,2.63970057,3788.4,3787.9,4.27]
[1753122405922,2.63970057,3788.4,3787.8,1.2301]
[1753122405923,2.63971923,3788.3,3787.8,0.7614]
[1753122406253,2.63964822,3788.4,3787.9,4.7387]
[1753122406555,0.55,3788.8,3788.0,4.269]
[1753122406744,2.63967803,3788.4,3788.0,4.269]
[1753122407045,0.86893552,3788.8,3787.9,0.4687]
[1753122407221,1.32983552,3788.8,3787.7,4.268]
[1753122407551,2.64000151,3787.9,3787.3,1.23380403]
[1753122407700,2.64007448,3787.8,3787.6,4.267]
[1753122407904,0.55,3788.0,3787.3,0.02640403]
[1753122408140,2.64038268,3787.4,3787.1,0.4423]
[1753122408349,0.55,3787.8,3786.8,0.7968]
[1753122408517,2.64053806,3787.2,3786.9,4.266]
[1753122408903,0.55,3787.6,3786.8,0.7968]
[1753122409138,2.64035174,3787.4,3786.9,4.266]
[1753122409438,0.55,3787.8,3786.4,1.1952]
[1753122409638,2.64058903,3787.1,3786.5,4.265]
[1753122409845,2.6404273,3787.3,3786.6,2.64084509]
[1753122410141,2.64072302,3786.9,3786.4,5.4572]
[1753122410379,2.64078178,3786.8,3786.4,1.1952]
[1753122410528,2.6406386,3787.0,3786.4,1.1952]
[1753122410731,2.64076744,3786.8,3786.4,5.4582]
[1753122411256,2.64080287,3786.8,3786.4,4.262]
[1753122411582,3.19084252,3786.7,3786.0,0.7934]
[1753122411729,3.19085791,3786.7,3786.0,0.7934]
[1753122412057,0.55,3787.1,3786.1,0.4423]
[1753122412225,2.64088988,3786.7,3786.1,0.4423]
[1753122412432,2.64088988,3786.7,3786.1,4.7043]
[1753122412662,0.55,3787.1,3786.1,4.7043]
[1753122412974,3.55,3787.5,3786.2,0.4423]
[1753122413186,6.19041436,3787.3,3786.2,0.4423]
[1753122413461,2.64053071,3787.2,3786.5,2.64091957]
[1753122413624,2.64033373,3787.4,3786.2,0.4687117]
[1753122413625,0.55,3787.4,3786.2,0.4687117]
[1753122413822,2.64063795,3787.0,3786.2,0.4687117]
[1753122414049,2.64063795,3787.0,3786.2,3.08345667]
[1753122414246,2.64063795,3787.0,3786.3,2.64109759]
[1753122414461,2.64055552,3787.1,3786.4,2.6410142]
[1753122414673,3.0,3787.3,3786.2,0.0264117]
[1753122414900,1.43026169,3788.3,3786.6,0.8291]
[1753122415027,2.63977614,3788.2,3787.3,2.64037711]
[1753122415228,3.0,3788.1,3787.5,2.64021303]
[1753122415552,5.0735,3788.7,3787.5,0.02640264]
[1753122415553,2.63976578,3788.3,3787.5,0.02640264]
[1753122415754,0.132,3787.9,3787.4,0.4423]
[1753122415959,0.132,3787.9,3787.4,7.34062345]
[1753122416471,2.77199109,3787.9,3787.4,0.4423]
[1753122416775,2.77199109,3787.9,3787.4,4.6993]
[1753122417177,2.63950832,3788.6,3787.5,0.4423]
[1753122417325,2.77091616,3788.3,3787.7,0.132]
[1753122417773,0.55,3788.2,3787.7,0.132]
[1753122417959,0.55,3788.1,3786.9,0.8261]
[1753122418327,2.64027748,3787.5,3786.9,0.8261]
[1753122418678,3.4609,3788.2,3786.9,0.02640682]
[1753122418882,2.64040422,3787.3,3787.0,0.4423]
[1753122419364,2.6402686,3787.5,3786.9,0.02640682]
[1753122419866,0.55,3787.6,3786.5,0.7913]
[1753122420052,2.64061262,3787.0,3786.9,0.001]
[1753122420252,5.64061262,3787.0,3786.9,0.001]
[1753122420453,6.4687266,3787.0,3786.9,0.001]
[1753122420658,0.4609,3788.3,3786.9,0.4433]
[1753122420854,4.801,3788.0,3786.9,0.4433]
[1753122421054,2.64052817,3787.2,3786.9,0.4433]
[1753122421460,2.64054739,3787.1,3786.9,0.4433]
[1753122421669,2.64049701,3787.2,3786.9,0.4433]
[1753122421839,2.64046707,3787.3,3786.9,0.4433]
[1753122422039,2.64053438,3787.2,3786.9,0.4433]
[1753122422976,2.64036342,3787.4,3786.9,0.4433]
[1753122423151,2.64012461,3787.7,3786.9,0.4433]
[1753122423473,2.64057553,3787.1,3786.9,0.001]
[1753122423674,5.64061262,3787.0,3786.9,0.001]
[1753122425177,3.0,3787.0,3786.9,0.001]
[1753122425481,3.0,3787.0,3786.9,0.4433]
[1753122425954,4.249,3787.4,3786.9,0.4433]
[1753122426151,2.64013071,3787.7,3787.0,0.8193]
[1753122426378,0.8058,3788.7,3787.5,2.64026289]
[1753122426581,0.8058,3788.7,3787.5,0.4423]
[1753122426752,0.8058,3788.7,3787.3,0.02640403]
[1753122426753,0.8058,3789.1,3787.7,0.8193]
[1753122426956,2.63939495,3788.8,3787.8,0.46870054]
[1753122427348,5.0528,3789.1,3787.9,1.19564916]
[1753122427545,2.63920225,3789.1,3788.3,2.63969842]
[1753122427748,0.7863,3789.1,3786.9,0.57612988]
[1753122427947,0.002,3789.2,3786.9,0.001]
[1753122427948,0.7546,3787.6,3786.9,0.001]
[1753122428170,2.64061262,3787.0,3786.9,0.001]
[1753122428346,6.32261262,3787.0,3786.9,0.001]
[1753122428546,6.78351262,3787.0,3786.9,0.001]
[1753122428855,2.64110554,3786.3,3785.8,0.9405]
[1753122429062,2.77298629,3786.5,3785.8,0.9405]
[1753122429252,2.64116426,3786.3,3785.8,0.9405]
[1753122429488,0.02639636,3786.4,3785.8,0.9405]
[1753122429489,2.64118714,3786.2,3785.8,0.9405]
[1753122429975,0.02639636,3786.4,3785.8,0.9405]
[1753122430176,2.64103991,3786.4,3785.8,0.9405]
[1753122430376,2.7729716,3786.5,3785.8,3.581924]
[1753122430543,2.66743849,3786.4,3785.8,0.9405]
[1753122430748,2.66743849,3786.4,3785.8,1.3828]
[1753122431078,0.02639636,3786.4,3785.8,1.3828]
[1753122431377,2.66746562,3786.4,3785.8,1.3828]
[1753122432374,0.02639636,3786.4,3785.8,1.3828]
[1753122432544,0.132,3786.5,3786.1,2.64118078]
[1753122432748,0.132,3787.0,3786.6,2.64082666]
[1753122432947,3.0,3787.3,3786.3,0.932]
[1753122432948,0.132,3787.3,3786.8,2.64074556]
[1753122433151,0.132,3787.3,3786.9,0.4423]
[1753122433374,0.132,3787.3,3786.7,0.15840821]
[1753122433560,0.132,3787.3,3787.0,0.4423]
[1753122433767,0.132,3787.3,3786.7,0.15840821]
[1753122433949,0.132,3787.3,3787.1,0.4423]
[1753122434894,0.15839636,3787.3,3786.7,0.60070821]
[1753122435494,2.79881118,3787.3,3786.7,0.60070821]
[1753122435695,0.15839636,3787.3,3786.7,0.60070821]
[1753122436191,2.79880184,3787.3,3786.7,0.60070821]
[1753122436396,2.79880184,3787.3,3786.7,0.15840821]
[1753122436560,1.27011024,3787.2,3786.7,0.132]
[1753122436758,0.15839636,3787.3,3786.7,0.132]
[1753122436956,2.64053126,3787.2,3786.7,0.132]
[1753122437192,0.15839636,3787.3,3786.7,0.132]
[1753122437412,2.64041721,3787.3,3786.8,0.02640752]
[1753122437567,2.64052295,3787.2,3786.8,0.132]
[1753122437895,0.02639636,3787.3,3786.8,0.132]
[1753122438586,0.15839636,3787.4,3786.8,0.5826]
[1753122438758,2.79877721,3787.4,3786.8,0.5826]
[1753122438958,0.15839636,3787.4,3786.8,3.22334518]
[1753122439161,2.79875961,3787.4,3786.8,0.5826]
[1753122439595,0.15839636,3787.4,3786.8,3.2233169]
[1753122439892,0.15839636,3787.4,3786.8,0.5826]
[1753122440261,2.6404107,3787.3,3786.8,0.5826]
[1753122441123,2.64052749,3787.2,3786.8,0.5826]
[1753122441418,2.64044923,3787.3,3786.8,0.5826]
[1753122441717,0.15839636,3787.4,3786.8,3.22335021]
[1753122441923,2.79873197,3787.4,3786.8,3.22335021]
[1753122442084,2.79873197,3787.4,3786.8,3.22334903]
[1753122442286,2.79877605,3787.4,3786.8,0.5826]
[1753122442488,0.15839636,3787.4,3786.8,0.5826]
[1753122442730,0.132,3787.4,3786.9,0.02640682]
[1753122443049,0.132,3787.4,3787.0,3.09120089]
[1753122443329,2.6400361,3787.9,3787.2,2.64042739]
[1753122443508,3.02639636,3787.9,3787.4,2.64033168]
[1753122443706,3.02639636,3787.9,3787.5,0.4506]
[1753122443912,5.63985721,3788.1,3787.6,0.4506]
[1753122444122,0.02639636,3788.0,3787.6,0.4506]
[1753122444643,2.6663375,3788.0,3787.6,0.4506]
[1753122444941,2.64006988,3787.8,3786.9,2.64066623]
[1753122445157,3.0,3787.5,3786.9,2.64066859]
[1753122445299,3.02639636,3787.5,3786.9,2.64066859]
[1753122445941,3.02639636,3787.5,3787.0,2.64061185]
[1753122447017,4.245,3787.7,3787.0,0.02640612]
[1753122447201,3.0,3787.6,3787.1,0.4506]
[1753122447405,0.02639636,3788.0,3787.0,0.02640612]
[1753122447406,4.242,3788.0,3787.0,0.02640612]
[1753122447713,4.242,3788.0,3786.7,3.91386753]
[1753122447714,2.64043604,3787.3,3786.8,4.242]
[1753122447909,0.02639636,3787.4,3786.9,2.64066563]
[1753122448115,0.02639636,3787.6,3786.8,4.242]
[1753122448450,0.02639636,3787.6,3786.8,6.90914309]
[1753122448631,0.02639636,3787.6,3787.0,2.6405842]
[1753122448966,14.5,3787.5,3787.1,2.64047755]
[1753122449144,4.24,3788.1,3787.2,0.47700473]
[1753122449323,3.02639636,3788.0,3787.3,2.64039917]
[1753122449516,14.5,3787.9,3787.3,2.64039917]
[1753122449718,14.5,3787.9,3787.0,2.64061262]
[1753122449912,14.5,3787.9,3786.9,4.239]
[1753122450571,14.5,3787.9,3787.5,2.64024662]
[1753122450723,14.5,3787.9,3787.4,2.64031221]
[1753122451216,14.5,3787.9,3787.7,2.64005967]
[1753122451421,3.0,3788.3,3787.7,2.64005967]
[1753122451622,7.26239636,3788.3,3787.7,2.64005967]
[1753122451823,7.236,3788.3,3787.7,2.64005967]
[1753122452155,0.7888,3788.8,3788.0,2.63987371]
[1753122452340,0.4682,3789.2,3788.1,2.63979572]
[1753122452541,2.63938815,3788.8,3788.2,0.02639776]
[1753122452857,0.02639636,3789.0,3788.2,0.02639776]
[1753122453056,3.02639636,3789.0,3788.4,2.63963678]
[1753122453257,0.1312,3789.0,3788.4,0.02639636]
[1753122453425,14.5,3788.9,3788.4,0.02639636]
[1753122453755,3.0,3788.8,3788.4,0.02639636]
[1753122453920,0.1312,3789.0,3788.9,2.63928844]
[1753122454116,0.002,3789.2,3789.1,2.63914913]
[1753122454342,0.002,3789.2,3789.1,4.253]
[1753122454554,0.002,3789.2,3789.0,5.0531]
[1753122454763,0.002,3789.2,3789.0,7.69231324]
[1753122454931,0.002,3789.2,3789.0,5.0531]
[1753122455264,0.002,3789.2,3789.1,3.11614062]
[1753122455471,0.002,3789.2,3789.1,3.08974913]
[1753122456678,0.002,3789.2,3789.1,2.63914913]
[1753122456879,0.002,3789.2,3789.0,3.43930282]
[1753122457379,0.002,3789.2,3789.1,2.63914913]
[1753122458139,0.002,3789.2,3789.0,3.43931457]
[1753122458342,0.002,3789.2,3789.0,3.88990847]
[1753122458576,0.002,3789.2,3788.6,0.8284]
[1753122458776,0.002,3789.2,3788.7,4.247]
[1753122458977,0.002,3789.2,3788.8,2.63930512]
[1753122459168,0.002,3789.2,3788.9,2.63923221]
[1753122459479,0.002,3789.2,3788.9,2.63926954]
[1753122459798,0.002,3789.2,3789.1,2.63914913]
[1753122460246,0.002,3789.2,3788.6,0.8284]
[1753122460446,0.002,3789.2,3788.5,0.4506]
[1753122460667,0.002,3789.2,3788.6,4.244]
[1753122461348,0.002,3789.2,3788.7,2.66580566]
[1753122461782,0.002,3789.2,3788.7,0.47699427]
[1753122461979,0.002,3789.2,3788.8,2.6393581]
[1753122462155,0.002,3789.2,3788.9,2.63927764]
[1753122462478,0.002,3789.2,3788.8,0.4506]
[1753122462682,0.002,3789.2,3788.7,2.66580202]
[1753122462849,0.002,3789.2,3788.8,2.63935242]
[1753122463050,0.002,3789.2,3788.6,4.244]
[1753122463687,0.002,3789.2,3788.6,6.87747254]
[1753122464068,0.1332,3789.2,3788.6,7.00867254]
[1753122464269,2.63920201,3789.1,3788.6,0.1312]
[1753122464489,0.02639636,3789.1,3788.6,4.3692]
[1753122465356,0.02639636,3789.1,3788.6,4.39559497]
[1753122465564,0.15959636,3789.2,3788.7,2.63941493]
[1753122465769,14.5,3789.1,3788.6,4.3692]
[1753122466303,14.5,3789.1,3788.6,7.00869685]
[1753122466667,17.13915916,3789.1,3788.6,4.3692]
[1753122466865,2.63921879,3789.0,3788.6,0.1312]
[1753122467102,2.7705581,3788.8,3788.2,4.23]
[1753122467304,3.13674896,3788.7,3787.8,0.7632]
[1753122467504,0.1312,3788.5,3788.0,2.63985419]
[1753122467680,0.1312,3788.5,3787.9,2.79758473]
[1753122467873,0.15759636,3788.5,3787.9,0.15759985]
[1753122468295,3.0,3788.8,3788.2,2.63972975]
[1753122468496,3.0,3788.6,3788.1,0.1312]
[1753122468775,0.15759636,3788.5,3787.9,4.3612]
[1753122469088,2.79720925,3788.5,3787.9,6.99916876]
[1753122469402,14.5,3788.4,3787.9,6.99916876]
[1753122469604,14.5,3788.4,3787.9,4.8179]
[1753122469805,14.5,3788.4,3787.9,7.45788388]
[1753122470211,14.5,3788.4,3788.0,2.63989957]
[1753122470406,14.5,3788.4,3788.0,0.4587]
[1753122470624,14.5,3788.4,3788.0,3.09860393]
[1753122470790,14.5,3788.4,3788.1,0.4587]
[1753122471115,0.1312,3788.7,3788.2,3.09841336]
[1753122471516,14.5,3788.6,3788.2,0.4587]
[1753122471696,14.5,3788.6,3788.2,3.09847149]
[1753122472097,14.5,3788.6,3788.2,0.4587]
[1753122472495,14.5,3788.6,3788.3,2.63968776]
[1753122472821,14.5,3788.6,3788.2,3.09845197]
[1753122473116,14.5,3788.6,3788.2,0.4587]
[1753122473823,0.7944,3789.5,3788.3,4.6787]
[1753122474021,0.8144,3789.9,3788.8,14.09999181]
[1753122474353,3.1312,3789.7,3789.1,2.63914913]
[1753122475025,14.5,3789.8,3789.1,3.09784913]
[1753122475325,0.02,3789.9,3789.1,3.09784913]
[1753122475912,0.02,3789.9,3789.1,3.12424062]
[1753122476120,0.02,3789.9,3789.1,5.28207713]
[1753122480419,14.5,3789.8,3789.1,9.49207713]
[1753122480596,14.5,3789.8,3789.0,0.1312]
[1753122480796,0.8067,3789.4,3789.0,0.1312]
[1753122481021,0.8067,3789.4,3788.9,4.209]
[1753122481022,0.4709,3789.1,3788.7,0.1312]
[1753122481228,0.1312,3788.9,3788.4,4.212]
[1753122481516,0.4709,3788.8,3788.4,4.212]
[1753122481719,0.49729636,3788.8,3788.4,4.212]
[1753122481918,0.49729636,3788.8,3788.3,4.212]
[1753122482324,0.02639636,3788.8,3788.3,4.212]
[1753122482622,14.5,3788.7,3788.4,7.30831694]
[1753122482942,0.002,3789.2,3788.7,0.1312]
[1753122483229,0.02839636,3789.2,3788.7,0.1312]
[1753122483521,3.0,3789.0,3788.7,0.1312]
[1753122483727,3.0,3789.0,3788.7,4.3412]
[1753122483927,0.4729,3789.2,3788.7,4.3412]
[1753122484087,0.4729,3789.2,3788.7,6.98062465]
[1753122484289,0.002,3789.2,3788.9,2.63923924]
[1753122484521,0.002,3789.2,3788.9,0.1312]
[1753122485992,0.002,3789.2,3788.7,4.3362]
[1753122486393,0.002,3789.2,3788.9,0.7837]
[1753122486593,0.002,3789.2,3789.1,0.1312]
[1753122488993,0.4729,3789.2,3788.8,4.203]
[1753122489230,0.002,3789.2,3789.0,2.63916983]
[1753122489449,0.002,3789.2,3789.0,0.4587]
[1753122490127,0.002,3789.2,3788.9,4.35559288]
[1753122491657,0.002,3789.2,3788.9,7.45353331]
[1753122491957,0.002,3789.2,3788.9,4.7879]
[1753122492147,0.002,3789.2,3789.0,0.4587]
[1753122492453,0.002,3789.2,3789.1,0.97499149]
[1753122492617,0.002,3789.2,3789.1,0.15759149]
[1753122493430,0.002,3789.2,3789.1,2.79674062]
[1753122493634,0.002,3789.2,3789.1,4.26471145]
[1753122494757,0.002,3789.2,3789.1,1.59917083]
[1753122494959,0.002,3789.2,3789.1,7.41904913]
[1753122495769,0.002,3789.2,3789.1,8.23644913]
[1753122497242,0.002,3789.2,3789.1,6.95534913]
[1753122497467,0.002,3789.2,3789.1,0.1312]
[1753122497672,0.002,3789.2,3789.1,4.185]
[1753122498789,0.002,3789.2,3788.9,0.15759288]